bitfinex/quotes_ETHUSD_20250603
["timestamp","ask_amount","ask_price","bid_price","bid_amount"]
[1748969593563,1.3024,2612.7,2611.9,8.37983736]
[1748969594051,1.3024,2612.7,2611.9,8.0]
[1748969594256,1.88006115,2612.7,2611.9,8.0]
[1748969594492,5.32000132,2612.6,2611.4,3.95290132]
[1748969594632,3.95290132,2611.9,2611.2,0.38667946]
[1748969594973,3.95290132,2611.9,2611.1,0.02]
[1748969594974,1.3671,2611.8,2611.1,0.02]
[1748969595776,1.3671,2611.8,2611.2,3.95290132]
[1748969595932,1.3671,2611.8,2611.2,7.78249169]
[1748969596133,1.3671,2611.8,2611.1,0.02]
[1748969596670,1.3671,2611.8,2611.1,3.84972047]
[1748969596874,1.3671,2611.8,2611.1,0.02]
[1748969597167,1.3671,2611.8,2611.1,3.84973324]
[1748969597333,1.3671,2611.8,2611.2,3.82964986]
[1748969597550,1.3671,2611.8,2611.1,3.84967123]
[1748969597949,1.3671,2611.8,2611.2,8.0]
[1748969598700,2.14171,2611.8,2611.1,0.02]
[1748969599044,2.14171,2611.8,2611.2,11.82965686]
[1748969599300,1.3671,2611.8,2611.2,8.0]
[1748969600150,1.3671,2611.8,2611.1,0.02]
[1748969601061,1.3671,2611.8,2611.1,3.8497293]
[1748969601250,1.3671,2611.8,2611.2,3.82965355]
[1748969601793,1.3671,2611.8,2611.1,8.02]
[1748969602161,1.3671,2611.8,2611.1,0.02]
[1748969602362,8.22703874,2611.9,2611.1,0.02]
[1748969602363,0.95941387,2611.7,2611.1,0.02]
[1748969602553,1.2424,2611.6,2611.1,0.02]
[1748969607775,1.2424,2611.6,2610.7,3.03283781]
[1748969608176,1.2424,2611.6,2610.8,3.83021423]
[1748969609512,1.2424,2611.6,2610.6,0.6315]
[1748969609710,1.8399,2611.4,2610.6,0.6315]
[1748969609918,1.2899,2611.2,2610.6,0.6315]
[1748969616720,0.55,2611.1,2610.6,0.6315]
[1748969617013,1.2938,2610.8,2610.6,0.6315]
[1748969622840,2.06078,2610.8,2610.6,0.6315]
[1748969623137,1.2684,2610.7,2610.6,0.6315]
[1748969625421,5.82920036,2610.7,2610.6,0.6315]
[1748969625600,0.55,2610.4,2610.1,0.02]
[1748969625800,5.27920036,2610.2,2610.1,0.02]
[1748969626136,6.4121204,2610.2,2610.1,0.02]
[1748969626433,1.90412004,2610.2,2610.1,0.02]
[1748969626619,1.3212,2610.2,2610.1,0.02]
[1748969627500,1.24,2610.7,2610.1,0.02]
[1748969627700,1.24,2610.7,2610.1,0.5546]
[1748969627925,1.24,2610.7,2610.1,4.38578771]
[1748969628534,1.24,2610.7,2610.4,3.83082907]
[1748969628749,1.24,2610.7,2610.2,3.83105728]
[1748969629254,1.24,2610.7,2610.2,3.83112405]
[1748969629404,1.24,2610.7,2610.1,0.5546]
[1748969629603,3.0055,2610.9,2610.2,3.83099862]
[1748969629904,3.0055,2610.9,2610.3,3.83090443]
[1748969630835,3.0055,2610.9,2610.2,3.83105638]
[1748969631158,1.695,2610.9,2610.1,0.02]
[1748969631302,1.3105,2610.8,2610.1,0.02]
[1748969631508,1.3105,2610.6,2610.1,0.02]
[1748969634147,0.55,2610.5,2610.1,0.02]
[1748969634338,7.6753,2610.4,2610.1,0.02]
[1748969635084,7.6753,2610.4,2608.5,0.55]
[1748969635239,7.6753,2610.4,2609.5,3.83208418]
[1748969635443,0.82253,2610.3,2609.6,3.83197997]
[1748969635644,0.82253,2610.3,2609.5,3.83207559]
[1748969635852,0.82253,2610.3,2609.6,3.83198639]
[1748969636056,0.82253,2610.3,2609.5,3.83208379]
[1748969636960,1.2993,2610.4,2609.6,3.83190876]
[1748969637125,1.2993,2610.4,2609.5,3.83204996]
[1748969637323,1.2993,2610.4,2609.6,3.8320036]
[1748969637575,1.2993,2610.4,2609.7,3.83185466]
[1748969637774,1.2993,2610.4,2609.6,3.83200365]
[1748969637962,1.2993,2610.4,2609.7,3.83176239]
[1748969638271,1.2993,2610.4,2609.7,3.83182994]
[1748969638432,1.2993,2610.4,2609.7,3.83175775]
[1748969639755,1.2993,2610.4,2609.5,3.83211601]
[1748969640584,1.2993,2610.4,2609.4,9.694]
[1748969640888,1.2993,2610.4,2609.2,12.06594648]
[1748969640889,1.2993,2610.4,2608.9,8.41945136]
[1748969641182,1.3446,2610.1,2609.1,0.02]
[1748969641344,8.67940905,2610.0,2609.1,11.85272318]
[1748969642034,8.67940905,2610.0,2609.1,8.02]
[1748969642268,1.261,2609.9,2609.1,0.02]
[1748969642483,9.9274905,2609.9,2609.1,0.02]
[1748969642690,0.55,2609.7,2609.1,0.02]
[1748969642847,1.3453,2609.6,2609.1,0.02]
[1748969645377,1.3597,2609.5,2609.1,0.02]
[1748969649667,8.072,2609.4,2609.1,0.02]
[1748969649990,1.3597,2609.5,2609.1,0.02]
[1748969650297,2.35797,2609.5,2609.1,0.02]
[1748969651694,10.0522905,2609.2,2609.1,0.02]
[1748969653065,1.8188,2609.2,2609.1,0.02]
[1748969653409,1.2688,2609.2,2609.1,0.02]
[1748969653712,1.72622995,2609.8,2609.1,0.02]
[1748969653915,8.0,2610.2,2609.1,0.02]
[1748969653916,6.378,2609.6,2609.1,0.02]
[1748969654423,1.3245,2609.5,2609.1,0.02]
[1748969655160,1.3245,2609.7,2609.2,3.83257218]
[1748969655361,1.3245,2609.7,2609.1,0.02]
[1748969655669,1.3245,2609.7,2609.1,3.8526701]
[1748969655985,1.3245,2609.7,2609.2,3.83252143]
[1748969656586,1.3245,2609.7,2609.1,3.85267795]
[1748969656932,1.3245,2609.7,2609.1,0.02]
[1748969657215,1.3667,2610.1,2609.2,3.83247248]
[1748969657393,1.3667,2610.1,2609.2,3.83251636]
[1748969657864,1.3667,2610.1,2609.1,3.85266165]
[1748969658068,1.3667,2610.1,2609.1,0.02]
[1748969659008,1.3667,2610.1,2609.1,3.85264247]
[1748969659510,1.3667,2610.1,2609.1,0.02]
[1748969659713,1.3667,2610.1,2609.1,3.85265858]
[1748969659714,8.073,2610.0,2609.1,3.85265858]
[1748969659885,1.277,2609.9,2609.1,0.02]
[1748969662899,1.277,2609.9,2609.1,3.85269135]
[1748969663130,7.655,2609.9,2609.1,0.02]
[1748969663414,1.3573,2609.8,2609.1,0.02]
[1748969665917,1.3573,2609.8,2609.3,3.83242224]
[1748969666120,1.3573,2609.8,2609.1,8.2534905]
[1748969666321,1.3856,2611.1,2609.7,8.2334905]
[1748969666683,1.3856,2611.1,2610.1,8.0]
[1748969666991,2.52056,2611.1,2610.3,8.2334905]
[1748969667195,1.3856,2611.1,2610.3,8.2334905]
[1748969667513,1.3856,2611.1,2610.3,8.4240937]
[1748969667711,1.3856,2611.1,2610.3,8.2334905]
[1748969668320,1.3856,2611.1,2610.3,12.06444412]
[1748969668523,1.3856,2611.1,2610.3,3.83095362]
[1748969668680,1.3856,2611.1,2610.3,10.0]
[1748969668900,1.3856,2611.1,2610.3,14.20513697]
[1748969669096,1.694,2611.6,2610.6,8.2334905]
[1748969669313,1.694,2611.6,2610.5,8.0]
[1748969669641,1.3087,2611.5,2610.4,8.0]
[1748969669847,1.3087,2611.5,2610.3,10.08175423]
[1748969670149,1.15364605,2611.4,2610.3,13.52489306]
[1748969670345,1.15364605,2611.4,2610.3,9.694]
[1748969671133,1.15364605,2611.4,2610.4,3.830713]
[1748969671342,1.3087,2611.5,2610.6,8.0]
[1748969671602,1.3087,2611.5,2610.4,11.83076094]
[1748969671963,9.3767,2611.5,2610.4,11.83076094]
[1748969672107,9.3767,2611.5,2610.4,8.0]
[1748969672706,1.3146,2611.4,2610.3,0.38997544]
[1748969672910,1.3146,2611.4,2610.2,11.83104163]
[1748969673105,1.3146,2611.4,2610.4,8.0]
[1748969673649,1.3146,2611.4,2610.5,3.83066573]
[1748969674307,1.3146,2611.4,2610.4,11.83077942]
[1748969674513,1.3146,2611.4,2610.4,8.0]
[1748969674809,1.3146,2611.4,2610.4,3.8307218]
[1748969675157,1.3146,2611.4,2610.3,16.6089]
[1748969675343,1.3146,2611.4,2610.3,20.43979576]
[1748969676211,1.3146,2611.4,2610.4,3.83077007]
[1748969676448,1.3146,2611.4,2610.3,20.43980714]
[1748969676610,1.3146,2611.4,2610.3,16.6089]
[1748969676815,1.3146,2611.4,2610.4,3.83080441]
[1748969677016,1.3146,2611.4,2610.3,16.6089]
[1748969677269,1.3146,2611.4,2610.7,11.83028487]
[1748969677415,1.3146,2611.4,2610.8,8.0]
[1748969677611,1.3146,2611.4,2610.5,8.0]
[1748969678413,1.3146,2611.4,2610.5,3.83067581]
[1748969678639,1.3146,2611.4,2610.7,8.0]
[1748969679479,1.3146,2611.4,2610.7,11.83037051]
[1748969679685,1.2547,2611.7,2611.1,11.82979591]
[1748969679969,0.02,2611.9,2611.1,3.82965704]
[1748969680953,0.02,2611.9,2611.0,11.82990036]
[1748969681642,0.02,2611.9,2611.0,8.0]
[1748969681966,0.02,2611.9,2611.0,9.595497]
[1748969682432,0.02,2611.9,2610.4,3.83082552]
[1748969682433,1.3401,2611.8,2610.5,1.693]
[1748969682782,1.3401,2611.8,2610.6,10.0]
[1748969682984,1.3401,2611.8,2610.5,11.693]
[1748969683285,1.3401,2611.8,2610.6,13.977002]
[1748969683433,1.3401,2611.8,2610.5,10.0]
[1748969683637,1.3401,2611.8,2610.7,10.0]
[1748969683942,1.3401,2611.8,2610.5,1.693]
[1748969683943,1.3401,2611.8,2610.6,8.0]
[1748969684452,1.3401,2611.8,2610.8,3.8302241]
[1748969684652,1.3401,2611.8,2610.6,11.83048539]
[1748969684891,2.28271,2611.8,2610.6,11.83048539]
[1748969685043,1.3401,2611.8,2610.6,11.83044812]
[1748969685241,7.7131,2611.8,2610.6,11.83044812]
[1748969685593,7.7131,2611.8,2610.7,11.83038354]
[1748969685752,7.7131,2611.8,2610.6,11.83045731]
[1748969685938,1.32,2611.7,2611.0,8.2334905]
[1748969686142,1.32,2611.7,2611.0,12.06335903]
[1748969686381,1.32,2611.7,2611.1,2.110331]
[1748969686567,1.32,2611.7,2611.3,10.0]
[1748969686753,1.32,2611.7,2611.2,8.0]
[1748969687365,1.32,2611.7,2611.1,8.0]
[1748969688279,1.32,2611.7,2610.7,4.067208]
[1748969688453,1.32,2611.7,2611.0,8.0]
[1748969688641,1.32,2611.7,2611.0,10.0]
[1748969688847,1.32,2611.7,2610.8,8.0]
[1748969689291,1.32,2611.7,2610.9,3.83000288]
[1748969689467,1.32,2611.7,2611.0,10.0]
[1748969689798,1.32,2611.7,2611.1,10.0]
[1748969689972,1.32,2611.7,2611.2,8.0]
[1748969690975,1.32,2611.7,2611.0,8.0]
[1748969691186,1.32,2611.7,2611.0,13.52292677]
[1748969693194,1.32,2611.7,2611.1,3.82966369]
[1748969693395,1.32,2611.7,2611.2,3.82964811]
[1748969693597,0.02,2611.9,2611.1,10.0]
[1748969693825,0.02,2611.9,2611.3,8.0]
[1748969694000,1.2989,2611.8,2611.2,11.82959307]
[1748969694309,1.2989,2611.8,2611.2,3.82959307]
[1748969694503,1.2989,2611.8,2611.3,8.0]
[1748969694662,1.2989,2611.8,2611.2,11.82959307]
[1748969694859,1.2989,2611.8,2611.3,8.0]
[1748969695063,1.2989,2611.8,2611.2,11.82959307]
[1748969695283,1.2989,2611.8,2611.3,10.0]
[1748969695484,1.2989,2611.8,2611.2,10.0]
[1748969695901,1.2989,2611.8,2611.1,13.82972494]
[1748969696530,1.2989,2611.8,2611.2,10.0]
[1748969696722,1.2989,2611.8,2611.2,3.82965459]
[1748969697528,1.2989,2611.8,2611.1,1.692]
[1748969697730,1.2989,2611.8,2611.0,8.0]
[1748969698230,1.2989,2611.8,2610.9,5.52209081]
[1748969699229,1.2989,2611.8,2611.1,10.0]
[1748969699388,1.2989,2611.8,2610.9,1.692]
[1748969699594,1.2989,2611.8,2610.8,8.0]
[1748969700024,1.2989,2611.8,2610.8,11.83021152]
[1748969700730,1.2989,2611.8,2610.8,8.0]
[1748969701123,1.2989,2611.8,2610.8,11.83021203]
[1748969701434,1.2989,2611.8,2610.9,3.83007655]
[1748969701634,1.2989,2611.8,2610.8,16.2334905]
[1748969701938,1.2989,2611.8,2611.1,3.82976482]
[1748969703414,1.2989,2611.8,2611.0,3.82992033]
[1748969703746,1.2989,2611.8,2610.9,10.0]
[1748969703747,1.2989,2611.8,2611.2,13.264057]
[1748969703953,1.2989,2611.8,2611.1,3.82971248]
[1748969704133,1.2989,2611.8,2611.0,13.82988019]
[1748969704538,1.2989,2611.8,2611.1,10.0]
[1748969704942,1.2989,2611.8,2611.0,10.0]
[1748969705253,1.2989,2611.8,2610.8,19.61023256]
[1748969705452,8.2334905,2611.7,2610.8,7.78]
[1748969705747,1.2828,2611.5,2610.8,7.78]
[1748969707864,1.2828,2611.5,2610.3,0.3754095]
[1748969708066,1.3148,2611.3,2610.4,10.0]
[1748969708271,1.3148,2611.3,2610.2,1.692]
[1748969708272,1.3148,2611.3,2610.2,3.83111251]
[1748969708653,1.3148,2611.3,2610.2,10.37564146]
[1748969708969,1.3148,2611.3,2610.1,1.692]
[1748969709267,1.3067,2611.2,2610.2,10.0]
[1748969709467,1.3067,2611.2,2610.3,10.0]
[1748969709772,1.3067,2611.2,2610.2,3.83104504]
[1748969710565,1.692,2611.3,2610.2,10.0]
[1748969710566,1.3067,2611.0,2610.2,10.0]
[1748969710968,1.3067,2611.0,2610.2,0.38425182]
[1748969711137,1.3067,2611.0,2610.1,10.0]
[1748969711335,1.3067,2611.0,2610.2,10.0]
[1748969711589,1.3067,2611.0,2610.1,3.83125319]
[1748969711741,1.3067,2611.0,2610.0,13.83135539]
[1748969712075,1.3067,2611.0,2610.0,11.692]
[1748969712433,1.3067,2611.0,2610.1,10.0]
[1748969712881,1.3067,2611.0,2610.2,10.0]
[1748969713085,1.3067,2611.0,2610.1,10.0]
[1748969713270,1.3067,2611.0,2609.9,8.269]
[1748969713470,1.269,2610.8,2609.9,8.269]
[1748969713784,1.269,2610.8,2609.9,10.0]
[1748969713990,1.269,2610.8,2609.8,1.692]
[1748969714584,1.269,2610.8,2609.8,0.18686174]
[1748969714879,1.269,2610.8,2609.8,10.0]
[1748969715200,1.2488,2610.6,2609.4,0.51]
[1748969715399,1.2488,2610.6,2609.5,0.19280899]
[1748969715685,1.2488,2610.6,2609.4,3.83228748]
[1748969715881,1.2488,2610.6,2609.4,7.75400069]
[1748969716082,1.2488,2610.4,2609.4,17.96308437]
[1748969716287,1.2488,2610.4,2609.5,3.83213601]
[1748969716590,1.2488,2610.4,2609.8,3.83166712]
[1748969717488,1.2488,2610.4,2609.7,8.2334905]
[1748969717794,1.2488,2610.4,2609.4,1.692]
[1748969718005,1.2552,2610.3,2609.1,0.40666906]
[1748969718303,1.2766,2610.1,2609.1,0.02]
[1748969719774,1.2685,2609.9,2609.1,0.02]
[1748969721210,1.2685,2609.9,2609.1,12.08622208]
[1748969721413,1.2685,2609.9,2609.1,12.08614827]
[1748969721634,1.2685,2609.9,2609.1,0.02]
[1748969722911,1.2706,2609.7,2609.1,0.02]
[1748969725382,1.2706,2610.5,2609.4,8.2334905]
[1748969725808,1.2706,2610.5,2609.3,10.0]
[1748969726582,1.2706,2610.5,2609.4,8.2334905]
[1748969726987,1.2706,2610.5,2609.3,10.0]
[1748969727184,1.2215,2610.3,2609.1,1.713]
[1748969727388,1.2215,2610.1,2609.1,1.713]
[1748969727634,1.2215,2610.1,2609.1,0.02]
[1748969729501,1.1943,2609.9,2609.1,0.02]
[1748969731518,1.692,2609.9,2609.1,0.02]
[1748969731699,1.1943,2609.8,2609.1,0.02]
[1748969731900,1.1943,2609.6,2609.1,0.02]
[1748969735349,1.1943,2609.6,2608.9,8.2334905]
[1748969735856,1.1943,2609.6,2609.2,8.2334905]
[1748969736013,1.1943,2609.6,2609.0,8.2334905]
[1748969736442,1.1943,2609.6,2608.8,8.0]
[1748969738965,1.1943,2609.6,2608.8,8.37410732]
[1748969740116,1.1943,2609.6,2608.8,0.37410732]
[1748969740309,1.1943,2609.6,2608.5,10.0]
[1748969740539,1.1943,2609.6,2608.3,8.0]
[1748969740756,1.1943,2609.6,2608.2,9.9254905]
[1748969740914,1.2988,2609.4,2608.3,0.38946219]
[1748969741122,1.2988,2609.2,2608.2,9.9254905]
[1748969741456,6.373,2609.3,2608.2,1.692]
[1748969741457,1.2988,2609.0,2608.2,1.692]
[1748969743253,1.2988,2609.0,2608.1,0.02]
[1748969744153,1.2988,2609.0,2608.1,0.41070279]
[1748969744538,1.2988,2609.0,2608.1,0.02]
[1748969744539,0.55,2608.9,2608.1,0.02]
[1748969744738,1.2074,2608.7,2608.1,0.02]
[1748969748781,1.2968,2608.6,2608.1,0.02]
[1748969750379,8.2334905,2608.2,2608.1,0.02]
[1748969750565,9.4434905,2608.2,2608.1,0.02]
[1748969750970,1.21,2608.2,2608.1,0.02]
[1748969751567,1.2595,2608.1,2607.9,0.15472454]
[1748969751774,2.20879905,2608.0,2607.9,0.15472454]
[1748969754708,1.2595,2608.0,2607.9,0.15472454]
[1748969755049,1.2759,2608.4,2607.9,0.15472454]
[1748969758690,9.4423905,2608.0,2607.9,0.15472454]
[1748969759024,10.38662955,2608.0,2607.9,0.15472454]
[1748969759566,10.93662955,2608.0,2607.9,0.15472454]
[1748969759967,17.31162955,2608.0,2607.9,0.15472454]
[1748969761276,3.83466848,2607.8,2607.1,0.02]
[1748969761476,1.2849,2607.2,2607.1,0.02]
[1748969762205,0.55,2607.2,2607.1,0.02]
[1748969762410,1.8453,2607.2,2607.1,0.02]
[1748969762772,1.2953,2607.2,2607.1,0.02]
[1748969763268,10.0787905,2607.2,2607.1,0.02]
[1748969763466,11.08666955,2607.2,2607.1,0.02]
[1748969763864,10.53666955,2607.2,2607.1,0.02]
[1748969766206,2.30317905,2607.2,2607.1,0.02]
[1748969766406,1.2953,2607.2,2607.1,0.02]
[1748969768600,9.2953,2607.2,2606.3,3.83681691]
[1748969769003,9.2953,2607.2,2606.3,3.83678523]
[1748969769180,9.2953,2607.2,2606.2,12.07816804]
[1748969769377,11.68577905,2607.2,2606.2,15.91510633]
[1748969769581,11.68577905,2607.2,2606.3,3.83685487]
[1748969769782,11.68577905,2607.2,2606.4,3.83668342]
[1748969770184,1.2953,2607.2,2606.5,3.83651052]
[1748969770393,1.2953,2607.2,2606.5,3.83647097]
[1748969771007,1.2953,2607.2,2606.2,12.07816804]
[1748969771207,1.2953,2607.2,2606.5,3.83656147]
[1748969771713,1.2953,2607.2,2606.4,3.83663919]
[1748969772119,1.2953,2607.2,2606.5,3.83644184]
[1748969772423,1.2953,2607.2,2606.6,3.83631504]
[1748969772603,1.2953,2607.2,2606.6,3.83627827]
[1748969772777,1.2953,2607.2,2606.7,3.83618906]
[1748969773800,1.304,2607.5,2606.3,18.2334905]
[1748969774001,1.304,2607.8,2607.4,3.83522076]
[1748969774200,1.304,2607.8,2607.2,8.0]
[1748969774386,1.304,2608.2,2607.2,9.693]
[1748969774591,1.304,2608.2,2607.4,10.0]
[1748969774785,9.5374905,2608.2,2607.4,8.0]
[1748969775180,9.5374905,2608.2,2607.1,11.83562837]
[1748969775181,1.304,2608.1,2607.1,11.83562837]
[1748969775406,1.304,2608.1,2607.1,3.83558908]
[1748969775618,1.304,2608.1,2607.0,1.693]
[1748969775821,1.304,2608.1,2607.3,8.0]
[1748969776123,1.3174,2608.8,2607.6,3.834944]
[1748969776321,1.2406,2608.5,2607.5,8.0]
[1748969776526,1.2406,2608.5,2607.5,11.83506084]
[1748969776737,1.2406,2608.5,2607.6,3.83493067]
[1748969777014,1.2957,2608.4,2607.3,1.692]
[1748969777221,1.2957,2608.4,2607.6,3.83487682]
[1748969777415,1.2957,2608.4,2607.5,8.0]
[1748969777621,1.2957,2608.4,2607.4,8.0]
[1748969778244,1.2957,2608.4,2607.8,3.83455079]
[1748969778414,1.2957,2608.4,2607.8,3.83461623]
[1748969778609,1.2957,2608.4,2607.3,5.52732963]
[1748969778804,1.2957,2608.4,2607.9,3.83442209]
[1748969779032,1.2957,2608.4,2608.0,3.83435568]
[1748969779338,1.2957,2608.4,2608.0,3.83433795]
[1748969780045,2.9758,2608.7,2608.3,3.83385976]
[1748969780246,0.02,2608.9,2608.0,23.83429805]
[1748969780456,0.02,2608.9,2608.4,3.83369927]
[1748969781445,0.02,2608.9,2608.3,3.83384138]
[1748969782010,0.02,2608.9,2608.3,3.83378288]
[1748969782211,0.02,2608.9,2608.5,3.83351591]
[1748969782410,0.02,2608.9,2608.6,3.8333392]
[1748969782606,0.02,2608.9,2608.4,8.0]
[1748969782907,0.02,2608.9,2608.8,3.83318]
[1748969783349,0.02,2608.9,2608.7,3.83328288]
[1748969783644,1.3034,2608.8,2608.2,3.83405378]
[1748969783849,1.3034,2608.8,2608.3,3.83390162]
[1748969784141,1.3034,2608.8,2608.1,3.83420881]
[1748969784342,1.3034,2608.8,2608.2,3.83397308]
[1748969784909,1.3034,2608.8,2608.3,3.83390188]
[1748969785110,1.3034,2608.8,2608.1,10.0]
[1748969785311,1.3034,2608.8,2608.0,3.83435582]
[1748969785508,1.3034,2608.8,2608.1,3.83420881]
[1748969785711,1.3034,2608.8,2608.3,3.83384797]
[1748969785944,1.3034,2608.8,2607.9,1.692]
[1748969786141,1.3034,2608.8,2607.9,5.52637658]
[1748969786533,1.3034,2608.8,2607.9,3.83437658]
[1748969786929,0.76974,2608.7,2607.9,3.83437658]
[1748969787157,1.3228,2608.6,2607.9,3.83450285]
[1748969787324,1.3228,2608.6,2608.0,3.83428101]
[1748969787648,1.3228,2608.6,2607.9,3.83443676]
[1748969787852,1.532054,2608.6,2607.9,3.83443676]
[1748969788018,1.532054,2608.6,2608.0,3.83434764]
[1748969788816,1.532054,2608.6,2607.7,9.692]
[1748969789017,1.532054,2608.6,2608.0,3.83435357]
[1748969789224,0.2301794,2608.5,2608.0,3.83435357]
[1748969789430,0.2301794,2608.5,2607.9,3.83444267]
[1748969789626,1.2372,2608.4,2607.5,0.51]
[1748969789827,1.2372,2608.4,2607.5,8.51]
[1748969790043,1.2372,2608.4,2607.5,8.0]
[1748969790245,1.2372,2608.4,2607.5,11.83500256]
[1748969790445,1.53002,2608.4,2607.5,11.83500256]
[1748969790617,1.53002,2608.4,2607.4,12.03029406]
[1748969790831,1.53002,2608.4,2607.2,9.691]
[1748969791032,1.53002,2608.4,2607.3,3.83538362]
[1748969791227,1.53002,2608.4,2607.4,3.83520781]
[1748969791457,1.3246,2608.2,2607.4,10.0]
[1748969791759,1.3246,2608.2,2607.3,10.38649082]
[1748969791929,1.3246,2607.7,2606.4,0.19956618]
[1748969792127,1.2451,2607.4,2606.6,10.0]
[1748969792427,1.2451,2607.4,2606.5,3.83642818]
[1748969792631,1.2451,2607.4,2606.6,3.83629847]
[1748969792831,1.2451,2607.4,2606.5,1.691]
[1748969794440,1.2451,2607.4,2606.2,12.07816804]
[1748969794441,1.2451,2607.4,2606.2,15.91508173]
[1748969794639,1.2451,2607.2,2606.4,10.0]
[1748969795263,1.2451,2607.2,2606.4,1.691]
[1748969798178,1.2451,2607.2,2606.3,8.0]
[1748969799045,1.2451,2607.2,2606.3,11.83679212]
[1748969799575,1.2451,2607.2,2606.3,8.0]
[1748969799773,1.2451,2607.2,2606.3,11.83678439]
[1748969800187,1.2451,2607.2,2606.3,8.0]
[1748969802161,1.1976,2607.1,2606.2,13.77016804]
[1748969806010,3.83685684,2606.3,2606.2,0.68461919]
[1748969806223,3.83685684,2606.3,2605.1,0.02]
[1748969806224,0.55,2606.0,2605.1,0.02]
[1748969806364,1.2036,2605.6,2605.1,0.02]
[1748969807405,1.2036,2605.6,2605.2,4.335763]
[1748969807702,1.2846,2606.1,2605.4,10.0]
[1748969807861,1.2846,2606.1,2605.5,3.83801803]
[1748969808058,1.2846,2606.1,2605.4,8.0]
[1748969808266,8.2334905,2605.8,2605.1,0.02]
[1748969808563,1.2846,2605.6,2605.1,0.02]
[1748969811178,2.23640905,2605.6,2605.1,0.02]
[1748969811381,1.2846,2605.6,2605.1,0.02]
[1748969814073,1.2846,2605.6,2605.1,1.713]
[1748969814285,1.2846,2605.6,2605.1,0.02]
[1748969814728,1.2846,2605.6,2605.1,1.713]
[1748969814929,1.3326,2606.4,2605.2,1.693]
[1748969815503,6.412,2606.3,2605.2,1.693]
[1748969815710,1.3301,2606.2,2605.2,1.693]
[1748969816441,1.3301,2606.2,2605.2,5.53146624]
[1748969816641,1.3301,2606.2,2605.3,2.22680851]
[1748969816797,1.3301,2606.2,2605.3,16.06513259]
[1748969817114,1.3301,2606.2,2605.3,2.22680851]
[1748969817290,1.3301,2606.2,2605.3,12.22680851]
[1748969817490,1.3301,2606.2,2605.3,0.93700851]
[1748969817703,0.93301,2606.1,2605.0,1.2458]
[1748969818097,1.3483,2606.0,2605.0,2.9548]
[1748969818685,1.3483,2606.0,2605.0,6.79354979]
[1748969819140,1.3483,2606.0,2605.0,2.9548]
[1748969819341,1.3483,2606.0,2605.2,17.63274344]
[1748969819490,1.3483,2606.0,2605.2,3.83841444]
[1748969819815,1.3483,2606.0,2605.3,10.0]
[1748969820131,1.3483,2606.0,2605.2,10.0]
[1748969820286,1.3483,2606.0,2605.3,1.109548]
[1748969821582,1.3483,2606.0,2605.1,4.93410073]
[1748969821791,1.3483,2606.0,2605.1,14.93410073]
[1748969822130,1.3483,2606.0,2605.3,10.0]
[1748969822329,1.3483,2606.0,2605.2,1.709]
[1748969822500,1.3483,2606.0,2605.3,10.3595468]
[1748969822684,1.3483,2606.0,2605.4,0.43985021]
[1748969822889,1.3483,2606.0,2605.5,0.35954597]
[1748969823197,1.3483,2606.0,2605.3,10.0]
[1748969823895,1.3483,2606.0,2605.2,5.54746937]
[1748969824088,1.3483,2606.0,2605.3,8.0]
[1748969824321,1.3483,2606.0,2605.1,1.09548]
[1748969824524,1.3483,2606.0,2605.2,1.709]
[1748969825401,1.3483,2606.0,2605.3,1.709]
[1748969825911,1.3483,2606.0,2605.4,8.0]
[1748969826223,1.3483,2606.0,2605.5,3.83802297]
[1748969826426,1.2457,2606.3,2605.6,2.90891304]
[1748969826940,1.2457,2606.3,2605.6,1.56761304]
[1748969827131,1.2457,2606.3,2605.4,9.3588]
[1748969827333,1.2457,2606.3,2605.5,1.709]
[1748969827536,1.2457,2606.3,2605.4,13.19696249]
[1748969827722,1.2457,2606.3,2605.5,1.709]
[1748969827925,1.2457,2606.3,2605.4,13.1969639]
[1748969828128,1.2457,2606.3,2605.6,8.0]
[1748969828644,1.2457,2606.3,2605.3,18.0]
[1748969828808,1.2457,2606.3,2605.4,1.709]
[1748969829012,1.2457,2606.3,2605.5,3.83796924]
[1748969829341,1.2457,2606.3,2605.5,1.55469692]
[1748969829710,1.2457,2606.3,2605.5,5.39266885]
[1748969829936,1.2457,2606.3,2605.6,3.83782681]
[1748969830745,1.2457,2606.3,2605.5,1.3398]
[1748969831448,1.2457,2606.3,2605.5,1.709]
[1748969831646,1.2457,2606.3,2605.4,11.83816178]
[1748969831850,1.2457,2606.3,2605.4,9.709]
[1748969832014,0.9509129,2606.2,2605.5,3.83803021]
[1748969832214,1.2457,2606.3,2605.6,8.0]
[1748969832643,1.2457,2606.3,2605.7,3.83767368]
[1748969834015,1.2457,2606.3,2605.8,3.83758394]
[1748969834352,1.2457,2606.3,2605.6,11.83785169]
[1748969834353,1.2457,2606.3,2605.7,3.83774033]
[1748969835727,1.2457,2606.3,2605.7,4.22891896]
[1748969835928,1.2457,2606.3,2605.8,1.60668003]
[1748969837250,1.2457,2606.3,2605.5,3.83793776]
[1748969837251,1.2457,2606.3,2605.5,4.9907233]
[1748969837455,1.2457,2606.3,2605.6,3.83779058]
[1748969837756,1.2457,2606.3,2605.7,0.38377906]
[1748969838556,1.2457,2606.3,2605.6,1.709]
[1748969838862,1.2457,2606.3,2605.6,5.54682265]
[1748969839068,1.2457,2606.3,2605.6,1.709]